bitfinex/quotes_ETHUSD_20241022
["timestamp","ask_amount","ask_price","bid_price","bid_amount"]
[1729560291704,3.77911,2646.2,2645.9,0.8209]
[1729560297511,7.55825,2646.2,2645.9,0.8209]
[1729560297684,3.77946,2645.9,2645.7,0.01896734]
[1729560297883,3.77946,2645.9,2645.5,0.8253]
[1729560297884,9.20618982,2645.9,2645.5,0.8253]
[1729560298207,3.77946,2645.9,2645.5,0.8253]
[1729560298608,5.42664982,2645.9,2645.5,0.8253]
[1729560298818,1.64718982,2645.8,2645.3,0.8253]
[1729560299108,1.64718982,2645.8,2645.3,4.60558]
[1729560299314,2.46058982,2645.8,2645.3,0.8253]
[1729560299514,3.77971,2645.7,2645.3,0.8253]
[1729560299874,1.64718982,2645.6,2645.3,0.8253]
[1729560300111,6.24021982,2645.8,2645.3,0.8253]
[1729560300325,4.59303,2645.8,2645.3,0.8253]
[1729560300517,3.77975,2645.7,2645.3,0.8253]
[1729560301075,4.59299,2645.8,2645.3,0.8253]
[1729560301290,4.59299,2645.8,2645.3,4.60558]
[1729560301606,3.77948,2645.9,2645.3,5.444085]
[1729560302330,3.77948,2645.9,2645.3,0.8253]
[1729560302624,3.77966,2645.8,2645.3,4.60549]
[1729560304005,3.77937,2646.0,2645.3,4.60549]
[1729560304208,13.04422056,2646.4,2645.8,0.762]
[1729560304436,8.49177056,2646.4,2645.8,1.21617]
[1729560304593,8.49173056,2646.4,2645.8,4.99561]
[1729560305193,8.49173056,2646.4,2645.8,1.21617]
[1729560305699,3.77902,2646.2,2645.8,1.21617]
[1729560306229,8.49173056,2646.4,2645.8,1.21617]
[1729560306429,3.77911,2646.2,2645.8,0.762]
[1729560307507,0.8062,2646.2,2645.5,4.59429]
[1729560307708,3.77893,2646.3,2645.7,0.8144]
[1729560307709,3.77892,2646.3,2645.7,0.8144]
[1729560307897,3.77892,2646.3,2645.8,4.23894]
[1729560308329,3.77892,2646.3,2645.8,0.45942]
[1729560309249,3.77885,2646.4,2645.8,4.23889]
[1729560310504,3.77901,2646.2,2645.8,0.45942]
[1729560310704,0.8073,2646.1,2645.6,3.77976]
[1729560311133,0.8073,2646.1,2645.5,0.799]
[1729560311415,3.77929,2646.0,2645.5,0.799]
[1729560312447,3.77929,2646.0,2645.5,4.579]
[1729560312811,3.77909,2646.2,2645.7,3.77964]
[1729560313014,3.77879,2646.4,2645.9,0.7977]
[1729560314026,3.77901,2646.2,2645.9,0.7977]
[1729560314358,3.77901,2646.2,2645.7,0.8281]
[1729560314651,3.77974,2645.7,2645.5,0.8281]
[1729560314858,3.77952,2645.9,2645.5,0.8281]
[1729560315027,7.55908,2645.9,2645.5,0.8281]
[1729560315350,7.55905,2645.9,2645.5,0.8281]
[1729560315560,3.77973,2645.7,2645.1,7.56097]
[1729560315734,3.77973,2645.7,2645.2,0.7943]
[1729560315933,3.77973,2645.7,2645.2,4.5747]
[1729560316227,3.77967,2645.8,2645.2,4.5747]
[1729560316664,3.77967,2645.8,2645.2,0.7943]
[1729560316848,3.77964,2645.8,2645.3,3.78027]
[1729560317827,3.77952,2645.9,2645.3,7.56046]
[1729560318033,3.77952,2645.9,2645.4,4.58863]
[1729560320542,7.55905,2645.9,2645.4,0.8085]
[1729560320894,8.49230056,2646.0,2645.5,3.77995]
[1729560321087,8.49230056,2646.0,2645.5,4.238795]
[1729560321257,4.71300056,2646.0,2645.8,3.77955]
[1729560321456,3.77894,2646.3,2645.9,0.7708]
[1729560321980,7.5579,2646.3,2645.9,0.7708]
[1729560322179,3.77894,2646.3,2645.9,0.7708]
[1729560323291,3.77872,2646.4,2645.9,5.005243]
[1729560323584,3.77872,2646.4,2645.9,1.225833]
[1729560324145,4.60226,2646.5,2645.9,1.225833]
[1729560324352,3.77895,2646.3,2645.9,1.225833]
[1729560325549,3.77895,2646.3,2645.9,0.7708]
[1729560325879,3.77908,2646.2,2645.9,0.7708]
[1729560326238,3.77895,2646.3,2645.9,0.7708]
[1729560326477,4.71300056,2646.4,2645.9,4.55013]
[1729560326683,8.49174056,2646.4,2645.9,4.55013]
[1729560326884,4.71300056,2646.4,2645.9,5.383098]
[1729560327271,8.49172056,2646.4,2645.9,5.383098]
[1729560327447,8.49172056,2646.4,2645.9,1.603768]
[1729560328084,8.49172056,2646.4,2645.9,5.383188]
[1729560328702,4.71300056,2646.4,2645.9,5.383188]
[1729560329020,8.49173056,2646.4,2645.9,5.383188]
[1729560329917,8.49173056,2646.4,2645.9,1.603768]
[1729560330288,8.49173056,2646.4,2645.9,5.383158]
[1729560331922,3.77873,2646.4,2645.9,5.383158]
[1729560333090,3.77873,2646.4,2645.9,5.383188]
[1729560333915,12.27003056,2646.6,2645.9,5.383188]
[1729560334187,8.49147056,2646.6,2646.0,5.1288588]
[1729560335189,3.7786,2646.5,2646.0,5.1288588]
[1729560335553,3.7786,2646.5,2646.0,5.1288988]
[1729560335852,8.49147056,2646.6,2646.0,1.3496188]
[1729560336159,8.49147056,2646.6,2646.0,5.1288988]
[1729560336327,4.71300056,2646.8,2646.4,3.77863]
[1729560336524,4.71300056,2646.8,2646.5,0.7501]
[1729560336764,3.79676265,2647.0,2646.4,0.7501]
[1729560336765,4.71300056,2646.9,2646.4,0.7501]
[1729560337066,4.71300056,2646.8,2646.7,4.60889]
[1729560337350,4.71300056,2646.8,2646.7,5.069779]
[1729560339670,4.71300056,2646.9,2646.7,5.069779]
[1729560339871,4.71300056,2646.9,2646.8,3.77814]
[1729560341479,4.71300056,2646.9,2646.8,4.60884]
[1729560348388,4.71300056,2646.9,2646.8,6.25511599]
[1729560349179,4.71300056,2646.9,2646.8,2.47697599]
[1729560349552,4.71300056,2646.9,2646.8,6.25511599]
[1729560349776,4.71300056,2646.9,2646.8,7.30453549]
[1729560351058,4.71300056,2646.9,2646.8,10.38009334]
[1729560351365,4.71300056,2646.9,2646.8,10.30453549]
[1729560355620,4.71300056,2646.9,2646.8,12.51081148]
[1729560355621,2.08552573,2646.9,2646.8,12.51081148]
[1729560355802,0.01890265,2647.0,2646.9,3.01]
[1729560355975,0.7933,2648.2,2647.7,3.77685]
[1729560356177,0.7933,2648.2,2647.8,1.64627599]
[1729560357316,0.7933,2648.2,2647.8,5.42297599]
[1729560357810,0.7933,2648.2,2647.9,1.64627599]
[1729560358132,0.7933,2648.2,2647.8,5.42297599]
[1729560358306,0.7933,2648.2,2647.8,3.7767]
[1729560359588,0.7933,2648.2,2648.0,3.77635]
[1729560359812,0.7793,2648.4,2648.0,3.77635]
[1729560360313,0.7793,2648.4,2648.0,4.53375]
[1729560360625,0.783,2648.9,2648.4,0.7681]
[1729560360916,0.9086453,2649.2,2648.8,3.77528]
[1729560361424,0.9086453,2649.2,2648.6,3.77545]
[1729560361932,4.6834953,2649.2,2648.6,3.77545]
[1729560362117,5.1537351,2649.2,2648.6,3.77545]
[1729560362304,5.1537351,2649.2,2648.5,3.67542177]
[1729560362505,5.1537251,2649.2,2648.5,7.45112177]
[1729560362924,8.9285651,2649.2,2648.5,3.67542177]
[1729560363125,5.1537251,2649.2,2648.5,3.67542177]
[1729560363329,0.9086453,2649.2,2648.6,4.59740718]
[1729560363637,3.7749,2649.1,2648.6,0.82192718]
[1729560363926,4.6833753,2649.2,2648.6,0.82192718]
[1729560364593,3.77497,2649.1,2648.6,0.82192718]
[1729560364792,8.4582153,2649.2,2648.6,0.82192718]
[1729560365028,4.6833753,2649.2,2648.6,0.82192718]
[1729560365331,3.77488,2649.1,2648.6,0.82192718]
[1729560365530,4.6833753,2649.2,2648.6,0.82192718]
[1729560366134,4.6833753,2649.2,2648.6,4.59749718]
[1729560366292,3.9003753,2649.2,2648.8,0.812]
[1729560369034,0.1256453,2649.2,2648.8,0.812]
[1729560370037,3.9004153,2649.2,2648.8,0.812]
[1729560370713,0.1256453,2649.2,2648.8,0.812]
[1729560371145,0.1256453,2649.2,2648.8,0.88749774]
[1729560371437,0.1256453,2649.2,2648.9,4.32407096]
[1729560371639,0.1256453,2649.2,2649.0,0.7702]
[1729560373311,0.1256453,2649.2,2649.1,0.07549004]
[1729560373513,0.1256453,2649.2,2649.1,3.77486]
[1729560374110,0.1256453,2649.2,2649.1,3.8503464]
[1729560374308,0.1256453,2649.2,2649.1,12.61746608]
[1729560374537,0.1256453,2649.2,2649.1,12.54197968]
[1729560379466,0.1256453,2649.2,2649.1,13.09197968]
[1729560379770,0.1256453,2649.2,2649.1,13.10197968]
[1729560380226,0.1256453,2649.2,2649.1,12.55197968]
[1729560380425,0.1256453,2649.2,2649.1,12.54197968]
[1729560380633,0.1256453,2649.2,2649.1,5.09169791]
[1729560380843,0.1256453,2649.2,2649.1,8.94204036]
[1729560381158,0.1256453,2649.2,2649.1,8.86655791]
[1729560381363,0.1256453,2649.2,2649.1,12.54197968]
[1729560381535,0.1256453,2649.2,2649.1,5.09169791]
[1729560381737,0.1256453,2649.2,2648.9,5.12911096]
[1729560382667,0.1256453,2649.2,2648.9,1.35401096]
[1729560383164,0.1256453,2649.2,2648.9,4.35401096]
[1729560384055,0.1256453,2649.2,2649.0,3.77497]
[1729560384253,0.7932,2649.1,2648.2,0.8187]
[1729560384494,0.7932,2649.1,2648.6,0.8187]
[1729560384706,4.5681,2649.1,2648.6,0.8187]
[1729560384857,0.7932,2649.1,2648.6,0.8187]
[1729560385493,0.7932,2649.1,2648.5,3.77562]
[1729560385718,4.56816,2649.1,2648.6,0.459432]
[1729560386897,3.77538,2648.8,2648.2,0.8134]
[1729560387066,7.55077,2648.8,2648.2,0.8134]
[1729560387267,3.77538,2648.8,2648.2,0.8134]
[1729560387590,4.59465,2648.7,2648.2,0.8134]
[1729560387788,4.59465,2648.7,2648.2,0.458959]
[1729560387961,3.7756,2648.6,2647.9,0.01890265]
[1729560388158,3.7756,2648.6,2647.8,0.7621]
[1729560388697,4.59521,2648.3,2647.7,3.7768]
[1729560388856,0.8192,2648.3,2647.6,0.7621]
[1729560389060,3.77627,2648.2,2647.6,1.216017]
[1729560389875,3.77627,2648.2,2647.6,4.992887]
[1729560390200,0.8192,2648.3,2647.7,3.77677]
[1729560390401,0.8192,2648.3,2647.7,3.85229736]
[1729560390959,0.8192,2648.3,2647.8,3.77666]
[1729560391263,0.8192,2648.3,2647.9,4.531893]
[1729560392174,0.8192,2648.3,2647.9,0.755343]
[1729560392780,0.8192,2648.3,2647.7,3.77675]
[1729560393009,4.59533,2648.3,2647.7,3.77675]
[1729560393217,3.77617,2648.2,2647.7,3.77675]
[1729560393506,3.77617,2648.2,2647.6,4.216017]
[1729560393707,3.77617,2648.2,2647.6,7.992967]
[1729560394011,3.77617,2648.2,2647.7,4.9538497]
[1729560394380,0.8192,2648.3,2647.7,4.9538497]
[1729560395075,4.59527,2648.3,2647.7,4.9538497]
[1729560395279,0.8192,2648.3,2647.7,4.9538497]
[1729560395499,0.8192,2648.3,2647.9,3.77648]
[1729560395781,0.8192,2648.3,2647.9,7.55296]
[1729560395981,0.8192,2648.3,2647.9,4.64947597]
[1729560396494,0.8192,2648.3,2647.9,3.77648]
[1729560397283,3.77563,2648.6,2648.0,0.8222]
[1729560397284,0.7781,2648.6,2648.0,0.8222]
[1729560397481,0.7781,2648.6,2648.1,3.77618]
[1729560397883,4.55373,2648.6,2648.0,0.8222]
[1729560398086,4.55373,2648.6,2648.0,4.59861]
[1729560398284,4.55373,2648.6,2648.0,5.43612]
[1729560398797,4.55373,2648.6,2648.1,3.77626]
[1729560399119,0.7781,2648.6,2648.1,3.77626]
[1729560400411,0.7525,2648.9,2648.6,3.77556]
[1729560400594,0.7525,2649.1,2648.7,0.45306283]
[1729560400793,0.7525,2649.1,2648.7,3.77543]
[1729560401020,0.7525,2649.1,2648.8,3.77529]
[1729560401622,0.1256453,2649.2,2648.8,3.77521]
[1729560402705,0.1256453,2649.2,2648.8,3.7752]
[1729560402910,0.1256453,2649.2,2648.9,0.38506996]
[1729560403226,0.1256453,2649.2,2648.9,4.16019996]
[1729560404499,0.1256453,2649.2,2649.0,3.775]
[1729560405009,0.1256453,2649.2,2648.9,0.38506996]
[1729560405210,0.1256453,2649.2,2648.8,3.77518]
[1729560405743,0.1256453,2649.2,2648.9,3.77514]
[1729560405910,0.1256453,2649.2,2648.8,3.77518]
[1729560408127,0.1256453,2649.2,2648.7,3.77542]
[1729560408309,0.1256453,2649.2,2648.6,7.55105]
[1729560408512,5.11261527,2649.2,2648.6,3.77549]
[1729560408928,8.88743527,2649.2,2648.6,3.77549]
[1729560409132,5.11261527,2649.2,2648.6,3.77549]
[1729560409343,3.7749,2649.1,2648.5,3.8085]
[1729560409644,0.8124,2649.0,2648.5,6.77562]
[1729560410543,4.58751,2649.0,2648.4,3.77573]
[1729560410802,0.8124,2649.0,2648.6,3.77549]
[1729560412705,0.7701,2648.9,2648.1,3.0]
[1729560412904,0.7701,2648.7,2648.1,3.0]
[1729560413104,3.7756,2648.6,2648.1,6.77629]
[1729560413506,0.8156,2648.3,2647.7,1.2769997]
[1729560413708,0.8156,2648.3,2647.8,7.55324]
[1729560413957,0.8156,2648.3,2647.8,3.77662]
[1729560414313,0.8156,2648.3,2647.7,0.1]
[1729560414558,0.8156,2648.3,2647.8,7.55334]
[1729560414772,0.8156,2648.3,2647.8,4.622884]
[1729560414973,0.8156,2648.3,2647.9,3.77655]
[1729560416773,0.8156,2648.3,2648.0,3.77634]
[1729560418379,0.8156,2648.3,2648.1,3.77625]
[1729560418674,0.8156,2648.3,2648.1,3.77621]
[1729560418847,0.8156,2648.3,2648.1,4.153831]
[1729560419031,0.8156,2648.3,2647.9,3.77649]
[1729560419230,0.8156,2648.3,2647.9,7.55298]
[1729560419436,0.8156,2648.3,2647.9,3.77649]
[1729560419636,0.8156,2648.3,2647.7,3.87677]
[1729560419836,0.8156,2648.3,2647.8,3.7767]
[1729560421138,0.8156,2648.3,2647.7,3.87677]
[1729560421139,3.7763,2648.1,2647.7,0.1]
[1729560423698,0.7954,2648.2,2647.7,0.1]
[1729560423863,3.77632,2648.1,2647.7,0.1]
[1729560424281,0.7954,2648.2,2647.7,0.1]
[1729560424681,4.57167,2648.2,2647.7,0.1]
[1729560425274,4.57167,2648.2,2647.7,3.87686]
[1729560425690,0.7954,2648.2,2647.7,3.87686]
[1729560426303,3.77661,2647.9,2647.7,0.1]
[1729560426469,0.804,2647.8,2647.7,0.1]
[1729560430830,4.58072,2647.8,2647.7,0.1]
[1729560430972,4.55392,2647.8,2647.7,0.1]
[1729560435495,0.7772,2647.8,2647.7,0.1]
[1729560435697,4.55392,2647.8,2647.7,0.1]
[1729560436010,5.38697,2647.8,2647.7,0.1]
[1729560437988,4.55392,2647.8,2647.7,0.1]
[1729560438601,0.7772,2647.8,2647.7,0.1]
[1729560439006,4.55392,2647.8,2647.7,0.1]
[1729560441421,5.10392,2647.8,2647.7,0.1]
[1729560441955,8.156,2647.6,2647.5,0.01890265]
[1729560442153,0.819,2647.2,2646.1,0.7862]
[1729560442470,3.77837,2646.7,2646.1,0.7862]
[1729560442622,0.819,2646.8,2646.3,3.77884]
[1729560442821,0.819,2646.8,2646.2,3.77886]
[1729560443028,3.77832,2646.7,2646.1,0.7862]
[1729560443242,3.77832,2646.7,2646.1,4.56532]
[1729560443447,3.77832,2646.7,2646.1,8.34437]
[1729560443664,3.77832,2646.7,2646.1,4.56525]
[1729560443867,3.77867,2646.5,2645.9,4.60346]
[1729560444229,3.77867,2646.5,2645.9,0.8241]
[1729560444829,3.77867,2646.5,2645.9,4.60352]
[1729560445032,5.06600718,2646.5,2645.9,4.60352]
[1729560445268,5.06600718,2646.5,2645.9,8.38286]
[1729560445777,1.28733718,2646.5,2646.0,3.77927]
[1729560447547,1.28733718,2646.5,2646.0,3.77919]
[1729560447971,1.28733718,2646.5,2646.0,7.55839]
[1729560448274,1.28733718,2646.5,2646.0,3.77919]
[1729560449649,1.28733718,2646.5,2646.0,7.55839]
[1729560449850,5.06590718,2646.5,2645.9,0.8241]
[1729560450049,0.58691972,2646.4,2645.9,0.8241]
[1729560450450,0.58691972,2646.4,2645.9,4.60341]
[1729560451380,3.77895,2646.3,2645.7,0.8262]
[1729560451576,4.52923,2646.2,2645.7,0.8262]
[1729560451734,5.41873997,2646.2,2645.7,0.8262]
[1729560452148,1.63970997,2646.2,2645.5,0.8262]
[1729560452488,3.77916,2646.1,2645.5,4.60612]
[1729560452644,3.77938,2646.0,2645.5,0.8262]
[1729560452854,3.77938,2646.0,2645.4,8.34353]
[1729560453160,3.77938,2646.0,2645.4,8.34349]
[1729560453849,8.30836,2646.2,2645.5,3.77994]
[1729560454050,1.02901875,2646.1,2645.6,3.77985]
[1729560454445,1.02901875,2646.1,2645.6,3.77975]
[1729560454647,4.52924,2646.2,2645.6,3.77975]
[1729560454863,3.77918,2646.1,2645.5,3.77996]
[1729560455081,4.52924,2646.2,2645.5,3.77996]
[1729560455285,0.8199,2645.9,2645.4,4.56351]
[1729560455494,0.8199,2645.9,2645.4,3.78011]
[1729560455786,4.59933,2645.9,2645.4,3.78011]
[1729560456283,6.01328675,2645.9,2645.4,3.78011]
[1729560456485,0.8199,2645.9,2645.4,3.78011]
[1729560457256,0.8199,2645.9,2645.4,7.56017]
[1729560457646,0.8199,2645.9,2645.4,3.78006]
[1729560459696,3.77973,2645.7,2645.2,4.59301]
[1729560459899,3.77969,2645.8,2645.2,4.59301]
[1729560460103,0.459959,2645.7,2645.2,8.37334]
[1729560460299,0.459959,2645.7,2645.2,8.37328]
[1729560460603,0.459959,2645.7,2645.2,4.59293]
[1729560460791,0.459959,2645.7,2645.3,3.78028]
[1729560461466,0.459959,2645.7,2645.2,4.59293]
[1729560462200,0.459959,2645.7,2645.3,3.78019]
[1729560462773,0.8199,2645.9,2645.4,3.78013]
[1729560463001,2.84122573,2646.1,2645.6,4.56238]
[1729560463201,2.08552573,2646.1,2645.8,3.77949]
[1729560463438,2.08552573,2646.1,2645.9,3.77934]
[1729560463586,2.08552573,2646.1,2646.0,3.77928]
[1729560463777,0.7557,2646.3,2646.0,3.77928]
[1729560463972,0.7557,2646.3,2645.8,3.77949]
[1729560464177,0.7557,2646.3,2645.8,8.015159]
[1729560464402,0.7557,2646.3,2645.8,4.235669]
[1729560464701,0.7557,2646.3,2645.8,8.015159]
[1729560465266,0.7557,2646.3,2645.8,4.235669]
[1729560465476,4.53457,2646.3,2645.8,3.77946]
[1729560465863,0.7557,2646.3,2645.8,3.77946]
[1729560466291,4.5346,2646.3,2645.8,3.77946]
[1729560466484,0.7557,2646.3,2645.8,7.55895]
[1729560466799,0.7987,2646.5,2646.0,3.77927]
[1729560467100,0.7987,2646.5,2646.0,4.57927]
[1729560467311,0.7987,2646.5,2646.0,3.77927]
[1729560467476,4.57736,2646.5,2646.0,3.77927]
[1729560469476,0.7987,2646.5,2646.0,3.77927]
[1729560470213,4.57731,2646.5,2646.0,3.77927]
[1729560470513,4.57731,2646.5,2645.8,4.5795]
[1729560470514,3.77872,2646.4,2645.8,4.5795]
[1729560470725,7.55752,2646.4,2645.8,4.5795]
[1729560470905,3.77872,2646.4,2645.8,4.5795]
[1729560471435,3.77872,2646.4,2645.8,8.35898]
[1729560471788,3.77872,2646.4,2645.8,4.57948]
[1729560471993,3.77872,2646.4,2645.9,3.77933]
[1729560472628,1.84283457,2646.5,2646.0,3.77927]
[1729560472828,0.7987,2646.5,2646.0,3.77927]
[1729560473521,4.57735,2646.5,2646.0,3.77927]
[1729560473826,4.57735,2646.5,2645.8,5.037438]
[1729560473827,3.77874,2646.4,2645.9,3.77938]
[1729560475042,4.57731,2646.5,2645.9,3.77938]
[1729560475818,4.57731,2646.5,2645.8,4.57948]
[1729560476133,0.7987,2646.5,2646.0,3.77926]
[1729560476429,0.7987,2646.5,2646.0,3.77921]
[1729560476635,4.57729,2646.5,2646.0,3.77921]
[1729560477320,3.77879,2646.4,2645.8,4.57949]
[1729560477504,0.7987,2646.5,2645.8,4.57949]
[1729560477835,1.256422,2646.5,2646.0,3.77928]
[1729560479551,3.77922,2646.1,2645.5,3.77991]
[1729560479703,4.58077,2646.0,2645.4,0.7608]
[1729560479906,4.58077,2646.0,2645.3,3.0]
[1729560479907,3.77958,2645.8,2645.3,3.0]
[1729560480295,3.77951,2645.9,2645.3,3.78026]
[1729560480532,0.836028,2645.8,2645.3,3.78026]
[1729560481340,0.836028,2645.8,2645.3,3.78021]
[1729560481633,4.58077,2646.0,2645.5,3.77997]
[1729560481998,0.8014,2646.0,2645.6,0.7689]
[1729560482238,0.8193,2646.3,2645.8,3.77947]
[1729560482450,0.8193,2646.3,2645.9,3.77942]
[1729560482601,0.8193,2646.3,2645.7,3.77959]
[1729560482800,1.53343477,2646.3,2645.7,3.77959]
[1729560483044,1.53343477,2646.3,2645.8,3.77956]
[1729560484040,1.53343477,2646.3,2645.9,3.77942]
[1729560484203,4.53769,2646.5,2646.0,0.8293]
[1729560484614,3.77875,2646.4,2645.9,3.77932]
[1729560485318,0.7591,2646.5,2645.9,3.77932]
[1729560485640,4.53769,2646.5,2645.9,3.77932]
[1729560485803,5.57786257,2646.5,2645.9,3.77932]
[1729560486736,7.55761,2646.4,2645.8,4.59486]
[1729560487243,3.77877,2646.4,2645.8,4.59486]
[1729560487408,3.77877,2646.4,2645.9,3.77939]
[1729560490507,1.79927257,2646.5,2645.9,7.5587]
[1729560490739,0.7591,2646.5,2645.9,3.77931]
[1729560490978,3.77884,2646.4,2645.8,0.8153]
[1729560491141,3.77887,2646.3,2645.8,4.59486]
[1729560491308,3.77884,2646.4,2645.8,4.59486]
[1729560491503,4.610484,2646.4,2645.8,0.8153]
[1729560491733,4.610484,2646.4,2645.9,3.7794]
[1729560492705,3.77916,2646.1,2645.5,4.592]
[1729560492910,3.77958,2645.8,2645.3,4.59231]
[1729560493133,0.377958,2645.7,2645.3,4.5923]
[1729560493449,3.77951,2645.9,2645.3,4.5923]
[1729560493605,3.77951,2645.9,2645.3,8.3725]
[1729560494106,0.7552,2646.0,2645.3,8.3725]
[1729560494107,4.53452,2646.0,2645.4,3.78012]
[1729560494311,0.7552,2646.0,2645.5,3.77994]
[1729560494729,3.77922,2646.1,2645.6,4.5919]
[1729560494929,2.08552573,2646.2,2645.6,4.5919]
[1729560495142,2.08552573,2646.2,2645.7,3.77962]
[1729560495846,2.08552573,2646.2,2645.7,7.55923]
[1729560496030,2.08552573,2646.2,2645.9,3.77941]
[1729560496220,0.7552,2646.3,2645.9,3.77941]
[1729560496620,3.77864,2646.5,2646.0,0.8121]
[1729560496820,3.77864,2646.5,2645.5,0.8121]
[1729560496821,3.67542177,2646.1,2645.5,0.8121]
[1729560497121,3.77966,2645.8,2645.3,0.8121]
[1729560498064,0.7653,2645.6,2644.9,0.0008]
[1729560498344,3.78037,2645.3,2644.9,0.0008]
[1729560498912,3.78015,2645.4,2644.9,0.0008]
[1729560499330,7.56011,2645.5,2644.9,0.0008]
[1729560499645,3.78014,2645.4,2644.9,0.0008]
[1729560499949,4.536314,2645.3,2644.9,0.0008]
[1729560500853,8.316734,2645.3,2644.9,0.0008]
[1729560501711,4.536314,2645.3,2644.9,0.0008]
[1729560502920,3.78006,2645.5,2644.9,0.0008]
[1729560503165,3.78006,2645.5,2645.0,4.59997]
[1729560503376,2.08552573,2645.7,2645.1,3.78053]
[1729560503513,2.08552573,2645.7,2645.2,3.78033]
[1729560503717,4.611,2645.8,2645.2,3.78033]
[1729560503916,0.915848,2645.7,2645.2,3.78033]
[1729560504656,0.915848,2645.7,2645.3,3.78026]
[1729560505761,3.77958,2645.8,2645.3,3.78026]
[1729560507935,3.77958,2645.8,2645.1,3.78053]
[1729560508262,3.77958,2645.8,2645.1,7.56101]
[1729560508599,4.54748,2645.9,2645.2,0.83010485]
[1729560508865,4.54587,2646.1,2645.5,3.77998]
[1729560509069,4.5456,2646.3,2645.6,0.7545]
[1729560509382,3.77916,2646.1,2645.6,0.7545]
[1729560510383,3.77916,2646.1,2645.6,4.5343]
[1729560510551,8.32458,2646.3,2645.6,5.365721]
[1729560510746,3.77903,2646.2,2645.6,5.365721]
[1729560510972,3.77919,2646.1,2645.6,1.585921]
[1729560511186,3.77919,2646.1,2645.6,0.7545]
[1729560511652,3.77919,2646.1,2645.6,4.53433]
[1729560512073,8.32461,2646.3,2645.7,3.77968]
[1729560512273,3.77892,2646.3,2645.7,7.55932]
[1729560512658,3.77892,2646.3,2645.7,3.77964]
[1729560512986,3.77892,2646.3,2645.7,8.390665]
[1729560514185,3.77892,2646.3,2645.7,4.611025]
[1729560517083,3.77892,2646.3,2645.7,3.77962]
[1729560517285,3.77901,2646.2,2645.6,0.7545]
[1729560517446,3.77916,2646.1,2645.6,0.7545]
[1729560517650,4.57372,2646.0,2645.6,0.7545]
[1729560517875,4.57372,2646.0,2645.5,3.77988]
[1729560518055,3.77958,2645.8,2645.4,0.775]
[1729560518648,4.614748,2645.9,2645.4,4.55502]
[1729560518968,8.35307,2646.0,2645.4,4.55502]
[1729560519292,4.57369,2646.0,2645.4,4.55502]
[1729560519473,4.57369,2646.0,2645.5,3.78]
[1729560521985,5.86458573,2646.2,2645.5,4.613502]
[1729560522188,5.86458573,2646.2,2645.7,3.77963]
[1729560523103,9.64366573,2646.2,2645.7,3.77963]
[1729560523300,5.86458573,2646.2,2645.7,3.77963]
[1729560524504,3.77906,2646.2,2645.7,3.77963]
[1729560528021,3.77937,2646.0,2645.6,0.8304]
[1729560528217,4.233006,2646.1,2645.6,0.8304]
[1729560528383,8.012226,2646.1,2645.6,0.8304]
[1729560529420,4.233006,2646.1,2645.6,0.8304]
[1729560529724,3.77915,2646.1,2645.6,0.8304]
[1729560529887,7.55837,2646.1,2645.6,0.8304]
[1729560530081,3.77915,2646.1,2645.6,4.61025]
[1729560530590,7.5584,2646.1,2645.6,4.61025]
[1729560530793,3.77915,2646.1,2645.6,4.61025]
[1729560531013,7.55838,2646.1,2645.6,4.61025]
[1729560531321,3.77915,2646.1,2645.6,4.61025]
[1729560533687,10.40295573,2646.3,2645.6,5.449201]
[1729560533888,9.64345573,2646.3,2645.7,3.77971]
[1729560534485,9.64345573,2646.3,2645.6,5.449201]
[1729560534486,3.77901,2646.2,2645.6,5.449201]
[1729560534798,3.77929,2646.0,2645.6,0.8304]
[1729560535205,3.77901,2646.2,2645.6,4.61024]
[1729560535403,0.58645357,2646.1,2645.6,4.61024]
[1729560535910,3.77901,2646.2,2645.6,4.61016]
[1729560536120,0.7528,2646.1,2645.6,0.8304]
[1729560536336,3.77937,2646.0,2645.6,0.8304]
[1729560537614,2.08552573,2646.3,2645.9,0.8222]
[1729560537819,0.01890265,2646.4,2646.3,4.60106]
[1729560538137,0.7758,2646.9,2646.4,3.77864]
[1729560538303,2.08552573,2647.2,2646.6,3.77835]
[1729560538304,4.59698,2647.2,2646.6,3.77835]
[1729560538503,4.59698,2647.2,2646.7,0.8271]
[1729560539133,3.77776,2647.1,2646.7,0.8271]
[1729560539314,4.237586,2647.0,2646.7,0.8271]
[1729560540209,0.459716,2647.0,2646.6,3.77842]
[1729560540409,4.59698,2647.2,2646.6,3.77842]
[1729560541243,3.77775,2647.1,2646.6,3.77842]
[1729560541448,3.77778,2647.1,2646.6,3.77842]
[1729560542044,3.77772,2647.1,2646.6,3.77829]
[1729560542206,0.8194,2647.2,2646.6,3.77829]
[1729560542411,3.77757,2647.2,2646.7,3.7782]
[1729560542614,3.77757,2647.2,2646.8,0.7667]
[1729560542964,4.54867,2647.4,2646.8,0.7667]
[1729560542965,4.54867,2647.4,2646.8,4.54473]
[1729560543255,3.77706,2647.6,2647.0,3.77777]
[1729560543256,4.54836,2647.6,2647.0,3.77777]
[1729560543455,3.77737,2647.4,2646.8,4.54476]
[1729560543611,3.77737,2647.4,2646.8,4.54475]
[1729560544448,3.77737,2647.4,2646.9,3.77791]
[1729560545328,8.32548,2647.6,2646.9,3.77791]
[1729560546050,3.77716,2647.5,2646.9,3.77791]
[1729560546254,3.77716,2647.5,2646.9,4.97771818]
[1729560546412,4.54838,2647.6,2646.9,1.19980818]
[1729560546617,3.77733,2647.4,2646.8,8.32279]
[1729560546817,4.54838,2647.6,2646.9,3.77799]
[1729560546818,3.77717,2647.5,2646.9,3.77799]
[1729560547426,3.7773,2647.4,2646.9,3.77799]